Workbook

Sheet BILAN
B1: ACTIF | C1: NET N | D1: PASSIF | E1: N | G1: Voici le bilan d'un client qui vous contacte pour passer un contrat important.
B2: Actif immobilisé | D2: Capitaux propres | G2: Vérifiez que le BFR est bien égal à | K2: =C16 -> 127827 | L2: euros
B3: Immobilisations incorporelles | C3: 30333 | D3: Capital | E3: 187627
B4: Immobilisation corporelles | C4: 389398 | D4: Réserves | E4: 12861 | G4: Vérifiez que le FR est bien égal à | K4: =C17 -> 35083 | L4: euros
B5: Immobilisations financières | C5: 29549 | D5: Résultat (bénéfie ou perte) | E5: 18401
B6: Total immobilisations | C6: =SUM(C3:C5) -> 449280 | D6: Total capitaux propres | E6: =SUM(E3:E5) -> 218889 | G6: Vérifiez que la TN est bien égale à | K6: =C18 -> -92744 | L6: euros
B7: Actif circulant | D7: Emprunts et dettes
B8: Stocks | C8: 31016 | D8: Emprunts | E8: 265474 | G8: Vérifiez que les ratios sont bien ceux affichés.
B9: Créances clients | C9: 105315 | D9: Découverts | E9: 753 | F9: Imprimer la version papier du sujet.
B10: Charges payées d'avance | C10: 23076 | D10: Dettes fournisseurs | E10: 38271 | G10: Comparez les ratios de l'entreprise à ceux de la profession.
B11: Valeurs Mobilières de placement | C11: 38426 | D11: Dettes fiscales et sociales | E11: 30982
B12: Disponibilités | C12: =E14-SUM(C6,C8:C11) -> -92744 | F12: voir le corrigé | G12: Emettez un avis sur le risque d'insolvabilité potientielle de ce futur client (Commande potientelle de 100 000 €).
B13: Total actif circulant | C13: =SUM(C8:C12) -> 105089 | D13: Total emprunt et dettes | E13: =SUM(E8:E12) -> 335480
B14: Total général | C14: =SUM(C6,C13) -> 554369 | D14: Total général | E14: =SUM(E6,E13) -> 554369
H15: Données de la profession
B16: BFR GLOBAL DE L'ENTREPRISE | C16: =SUM(C8:C11)-SUM(E9:E11) -> 127827 | D16: EUROS | E16: Ventes TTC | F16: =INT(C9*30) -> 3159450 | K16: BFR GLOBAL
B17: FR DE L'ENTREPRISE | C17: =E6+E8-C6 -> 35083 | D17: EUROS | E17: Achats HT | F17: =F18/1.2 -> 1184793.333 | H17: Rotation stocks | K17: 64625.35274 | L17: euros
B18: TN DE L'ENTREPRISE | C18: =C17-C16 -> -92744 | D18: EUROS | E18: Achats TTC | F18: =INT(F16*0.45) -> 1421752 | H18: 30 | I18: jours | K18: FR
E19: Acomptes reçus | F19: 4262 | H19: Rotation Créances clients | K19: 15863.81816 | L19: euros
E20: Acomptes versés | F20: 668 | H20: 59 | I20: jours
B21: RATIOS DE L'ENTREPRISE | E21: Services extérieurs | F21: =INT(F17*0.005) -> 5923 | H21: Rotation fournisseurs | K21: FI
B22: Financement des immobilisations | H22: 11.66666667 | I22: jours | K22: 0.7353484284
B23: FI | C23: =(E6+E8)/C6 -> 1.078087162 | K23: CCI
B24: Couverture des capitaux investis | K24: 0.4437301076
B25: CCI | C25: =(E6+E8)/(C6+C16) -> 0.8392949661 | K25: IF
B26: Indépendance financière | E26: Application proposée par C. KYDTS christophe.kydts@ac-lille.fr Tous droits réservés. Application disponible en l'état Aucune réutilisation commerciale autorisée Obligation de citer l'auteur en cas de partage. | K26: 1.094433883
B27: IF | C27: =E8/E6 -> 1.212824765
B28: Rotation stocks
B29: RTS | C29: =(C8/F17)*360 -> 9.424225885 | D29: jours
B30: Rotation créances clients
B31: RTC | C31: =((C9-F19)/(F16))*360 -> 11.51437117 | D31: jours | G31: Client paie avant paiement du fournisseur
B32: Rotation dettes fournisseurs
B33: RTF | C33: =(E10-F20)/(F18+F21)*360 -> 9.481905896 | D33: jours

Sheet BPE
A1: EVALUATION ANALYSE DU RISQUE FINANCIER | E1: Aide mémoire formules de calcul | M1: RETOUR
A2: BTS GPME - BLOC 1 - ANALYSE DU RISQUE CLIENT
A3: Date du sujet | B3: 2023-01-25
A4: Vous avez à votre dissposition le bilan fonctionnel de l'entreprise d'un client qui souhaite engager une relation commerciale avec votre entreprise. Votre responsable vous demande d'analyser la situation pour évaluer le risque potentiel.
M5: VOIR LE CORRIGÉ
A9: =BILAN!B1 -> ACTIF | B9: =BILAN!C1 -> NET N | C9: =BILAN!D1 -> PASSIF | D9: =BILAN!E1 -> N
A10: =BILAN!B2 -> Actif immobilisé | C10: =BILAN!D2 -> Capitaux propres
A11: =BILAN!B3 -> Immobilisations incorporelles | B11: =BILAN!C3 -> 30333 | C11: =BILAN!D3 -> Capital | D11: =BILAN!E3 -> 187627
A12: =BILAN!B4 -> Immobilisation corporelles | B12: =BILAN!C4 -> 389398 | C12: =BILAN!D4 -> Réserves | D12: =BILAN!E4 -> 12861
A13: =BILAN!B5 -> Immobilisations financières | B13: =BILAN!C5 -> 29549 | C13: =BILAN!D5 -> Résultat (bénéfie ou perte) | D13: =BILAN!E5 -> 18401
A14: =BILAN!B6 -> Total immobilisations | B14: =BILAN!C6 -> 449280 | C14: =BILAN!D6 -> Total capitaux propres | D14: =BILAN!E6 -> 218889
A15: =BILAN!B7 -> Actif circulant | C15: =BILAN!D7 -> Emprunts et dettes
A16: =BILAN!B8 -> Stocks | B16: =BILAN!C8 -> 31016 | C16: =BILAN!D8 -> Emprunts | D16: =BILAN!E8 -> 265474
A17: =BILAN!B9 -> Créances clients | B17: =BILAN!C9 -> 105315 | C17: =BILAN!D9 -> Découverts | D17: =BILAN!E9 -> 753
A18: =BILAN!B10 -> Charges payées d'avance | B18: =BILAN!C10 -> 23076 | C18: =BILAN!D10 -> Dettes fournisseurs | D18: =BILAN!E10 -> 38271
A19: =BILAN!B11 -> Valeurs Mobilières de placement | B19: =BILAN!C11 -> 38426
A20: =BILAN!B12 -> Disponibilités | B20: =BILAN!C12 -> -92744
A21: =BILAN!B13 -> Total actif circulant | B21: =BILAN!C13 -> 105089 | C21: =BILAN!D13 -> Total emprunt et dettes | D21: =BILAN!E13 -> 335480
A22: =BILAN!B14 -> Total général | B22: =BILAN!C14 -> 554369 | C22: =BILAN!D14 -> Total général | D22: =BILAN!E14 -> 554369
A24: Données de l'entreprise
A27: =BILAN!E16 -> Ventes TTC | B27: =BILAN!F16 -> 3159450 | C27: =BILAN!B23 -> FI | D27: =BILAN!C23 -> 1.078087162
A28: =BILAN!E17 -> Achats HT | B28: =BILAN!F17 -> 1184793.333 | C28: =BILAN!B25 -> CCI | D28: =BILAN!C25 -> 0.8392949661
A29: =BILAN!E18 -> Achats TTC | B29: =BILAN!F18 -> 1421752 | C29: =BILAN!B27 -> IF | D29: =BILAN!C27 -> 1.212824765
A30: =BILAN!E19 -> Acomptes reçus | B30: =BILAN!F19 -> 4262 | C30: =BILAN!B28 -> Rotation stocks | D30: =BILAN!C29 -> 9.424225885
A31: =BILAN!E20 -> Acomptes versés | B31: =BILAN!F20 -> 668 | C31: =BILAN!B30 -> Rotation créances clients | D31: =BILAN!C31 -> 11.51437117
A32: =BILAN!E21 -> Services extérieurs | B32: =BILAN!F21 -> 5923 | C32: =BILAN!B32 -> Rotation dettes fournisseurs | D32: =BILAN!C33 -> 9.481905896
A34: Données de la branche d'activité
A36: =BILAN!H17 -> Rotation stocks | B36: =BILAN!H18 -> 30 | C36: =BILAN!K16 -> BFR GLOBAL | D36: =BILAN!K17 -> 64625.35274
A37: =BILAN!H19 -> Rotation Créances clients | B37: =BILAN!H20 -> 59 | C37: =BILAN!K18 -> FR | D37: =BILAN!K19 -> 15863.81816
A38: =BILAN!H21 -> Rotation fournisseurs | B38: =BILAN!H22 -> 11.66666667 | C38: =BILAN!K21 -> FI | D38: =BILAN!K22 -> 0.7353484284
C39: =BILAN!K23 -> CCI | D39: =BILAN!K24 -> 0.4437301076
C40: =BILAN!K25 -> IF | D40: =BILAN!K26 -> 1.094433883
A42: =BILAN!G2 -> Vérifiez que le BFR est bien égal à | C42: =BILAN!K2 -> 127827 | D42: =BILAN!L2 -> euros
A43: =BILAN!G4 -> Vérifiez que le FR est bien égal à | C43: =BILAN!K4 -> 35083 | D43: =BILAN!L4 -> euros
A44: =BILAN!G6 -> Vérifiez que la TN est bien égale à | C44: =BILAN!K6 -> -92744 | D44: =BILAN!L6 -> euros
A45: =BILAN!G8 -> Vérifiez que les ratios sont bien ceux affichés.
A46: =BILAN!G10 -> Comparez les ratios de l'entreprise à ceux de la profession.
A47: =BILAN!G12 -> Emettez un avis sur le risque d'insolvabilité potientielle de ce futur client (Commande potientelle de 100 000 €).
A49: Pour chaque calcul, vous préciserez la formule et les valeurs utilisées.

Sheet CORRIGE
A1: Éléments de corrigés sur l'analyse des risques du client. | U1: RETOUR
U4: RATIOS
U7: ANALYSE
A8: BFR = | B8: ( | C8: =BILAN!C8 -> 31016 | D8: + | E8: =BILAN!C9 -> 105315 | F8: + | G8: =BILAN!C10 -> 23076 | H8: + | I8: =BILAN!C11 -> 38426 | J8: ) | K8: - | L8: ( | M8: =BILAN!E9 -> 753 | N8: + | O8: =BILAN!E10 -> 38271 | P8: + | Q8: =BILAN!E11 -> 30982 | R8: )
B10: = | C10: =SUM(C8,E8,G8,I8) -> 197833 | D10: - | E10: =SUM(M8,O8,Q8) -> 70006
B11: = | C11: =C10-E10 -> 127827
A22: FR = | B22: ( | C22: =BILAN!E6 -> 218889 | D22: + | E22: =BILAN!E8 -> 265474 | F22: - | G22: =BILAN!C6 -> 449280 | H22: ) | K22: = | M22: =C22+E22-G22 -> 35083
A32: TN = | B32: ( | C32: =M22 -> 35083 | D32: - | E32: =C11 -> 127827 | F32: ) | K32: = | M32: =C32-E32 -> -92744
A42: FI = | B42: ( | C42: =BILAN!E6 -> 218889 | D42: + | E42: =BILAN!E8 -> 265474 | F42: ) | G42: = | H42: =SUM(C42,E42)/C43 -> 1.078087162
C43: =BILAN!C6 -> 449280
A52: CCI = | C52: =C42 -> 218889 | D52: + | E52: =E42 -> 265474 | G52: = | I52: =SUM(C52,E52)/SUM(C53,E53) -> 0.8392949661
C53: =C43 -> 449280 | D53: + | E53: =C11 -> 127827
A63: IF = | C63: =BILAN!E8 -> 265474 | G63: = | I63: =C63/C64 -> 1.212824765
C64: =BILAN!E6 -> 218889
A73: RTS = | C73: =BILAN!C8 -> 31016 | D73: x | E73: 360 | G73: = | I73: =(C73/C74)*360 -> 9.424225885
C74: =BILAN!F17 -> 1184793.333
A83: RTC = | B83: ( | C83: =BILAN!C9 -> 105315 | D83: - | E83: =BILAN!F19 -> 4262 | F83: ) | G83: x 360 | H83: = | I83: =((C83-E83)/C84)*360 -> 11.51437117
C84: =BILAN!F16 -> 3159450
A93: RTF = | B93: ( | C93: =BILAN!E10 -> 38271 | D93: - | E93: =BILAN!F20 -> 668 | F93: ) | G93: x 360 | H93: = | I93: =((C93-E93)/SUM(C94,E94)*360) -> 9.481905896
B94: ( | C94: =BILAN!F18 -> 1421752 | D94: + | E94: =BILAN!F21 -> 5923 | F94: )
A98: RÉCAPITULATIF DONNÉES | Q98: Haut de page
C99: ENTREPRISE | E99: BRANCHE | G99: Signification des indicateurs
A100: BFR | C100: =C11 -> 127827 | D100: =IF(C100>E100,">",IF(C100=E100,"=","<")) -> > | E100: =INT(BILAN!K17) -> 64625 | G100: Désigne le besoin en trésorerie qu'implique l'activité d'une entreprise (généralement pour effacer les décalages entre les encaissements et les décaissements). Un BFR > 0 s'explique quand les clients payent l'entreprise APRÈS qu'elle ait payé ses fournisseurs.
A101: FR | C101: =M22 -> 35083 | D101: =IF(C101>E101,">",IF(C101=E101,"=","<")) -> > | E101: =INT(BILAN!K19) -> 15863 | G101: Désigne le montant constamment disponible pour couvrir les dépenses courantes liées à l'activité de l'entreprise. FR < 0 (à long terme) indique que l'entreprise ne dispose pas de ressources suffisantes pour financer son fonctionnement. FR < 0 (à court terme) indique que l'entrperise ne peut pas régler ses dettes en utilisant son actif de court terme. FR > 0 indique que l'entreprise peut financer le BFR grâce à son excédent. Le solde forme la trésorerie nette de l'entreprise. | U101: Accéder à l'aide en ligne
A102: TN | C102: =M32 -> -92744 | D102: < | E102: =E101-E100 -> -48762 | G102: Elle mesure les liquidités mobilisables à court terme par l'entreprise. Une trésorerie > 0 indique la capacité de l'entreprise à payer ses dettes. Attention, un exédent trop important signifie des fonds inutilisés (qui dorment). L'excédent de trésorerie doit faire l'objet d'une stratégie d'utilisation (placement financier, achats immobiliers, etc.) Une trésorerie < 0 (sur le long terme) peut indiquer une mauvaise gestion du BFR qui peut être amélioré par une réduction du délai client, une meilleure gestion des stocks ou un allongement du délai fournisseur. La trésorerie négative peut révéler un FR insuffisant et inciter à revoir la politique d'investissement.
A103: FI | C103: =H42 -> 1.078087162 | D103: > | E103: =BILAN!K22 -> 0.7353484284 | G103: Ce ratio indique la capacité de l'entreprise à financer l'exploitation à Long Terme. Il est impératif que ce ratio soit > à 1.
A104: CCI | C104: =I52 -> 0.8392949661 | D104: > | E104: =BILAN!K24 -> 0.4437301076 | G104: Ce ratio indique la capacité de l'entreprise à générer une trésorerie positive. Il est impératif que ce ratio soit > à 1.
A105: IF | C105: =I63 -> 1.212824765 | D105: =IF(C105>E105,">",IF(C105=E105,"=","<")) -> > | E105: =BILAN!K26 -> 1.094433883 | G105: Ce ratio représente un bon indicateur sur la capacité de l'entreprise à couvrir ses emprunts à long terme par ses propres capitaux. Pour le banquier, il permet de vérifier qu'il finance moins que le propriétaire. Il est impératif que ce ratio soit < à 1.
A106: RTS | C106: =I73 -> 9.424225885 | D106: < | E106: =BILAN!H18 -> 30 | G106: Ce ratio détermine le nombre de jours nécessaires à l'écoulement des stocks. Il doit être le plus court possible.
A107: RTC | C107: =I83 -> 11.51437117 | D107: < | E107: =BILAN!H20 -> 59 | G107: Ce ratio représente le nombre de jours moyen que les clients prennent pour payer l'entreprise. Il doit être le plus court possible.
A108: RTF | C108: =I93 -> 9.481905896 | D108: < | E108: =BILAN!H22 -> 11.66666667 | G108: Ce ratio représente le nombre de jours moyen que l'entreprise prend pour régler ses fournisseurs. Il doit être le plus long possible (à défaut au moins supérieur au ratio des créances clients.
A110: ANALYSE | Q110: Haut de page
A112: BFR, FR et TN de l'entreprise
A113: =IF(C101>=C100,"L'entreprise possède un FR supérieur au BFR ce qui lui permet de dégager une trésorerie positive. Cela lui permet d'assurer le paiement de ses dettes","L'entreprise possède un FR inférieur au BFR ce qui ne lui permet pas de dégager une trésorerie positive. Cela ne lui permet d'assurer le paiement de ses dettes") -> L'entreprise possède un FR inférieur au BFR ce qui ne lui permet pas de dégager une trésorerie positive. Cela ne lui permet d'assurer le paiement de ses dettes
A114: RATIOS de l'entreprise
A115: Financement des investissements (FI)
A116: =IF(C103<1,"L'entreprise n'a pas la capacité à financer son exploitation à long terme. Ce ratio DOIT être supérieur à 1. L'entreprise doit être capable d'apporter plus de capitaux pour financer ses emprunts à long terme","L'entreprise a la capacité à financer son exploitation à long terme. Ce ratio DOIT être supérieur à 1. La situation est donc rassurante") -> L'entreprise a la capacité à financer son exploitation à long terme. Ce ratio DOIT être supérieur à 1. La situation est donc rassurante
A117: Couverture des capitaux Investis (CCI)
A118: =IF(C104>1,"L'entreprise couvre ses besoins de financement liés à ses investissement et à son exploitation. Ce ratio doit être supérieur à 1. La situation est donc rassurante","L'entreprise ne couvre pas ses besoins de financement liés à ses investissement et à son exploitation. Ce ratio doit être supérieur à 1. La situation est donc inquiétante") -> L'entreprise ne couvre pas ses besoins de financement liés à ses investissement et à son exploitation. Ce ratio doit être supérieur à 1. La situation est donc inquiétante
A119: Indépendance financière (IF)
A120: =IF(C105<1,"L'entrperise ne couvre pas ses emprunts à long terme par ses capitaux propres. La situation est inquiétante dans la mesure où la banque espère un ratio supérieur à 1. L'entreprise doit agir sur l'augmentation de ses capitaux propres","L'entrperise couvre ses emprunts à long terme par ses capitaux propres. La situation est rassurante dans la mesure où la banque espère un ratio supérieur à 1. Il sera donc rassuré sur la capacité de l'entreprise à rembourser ses emprunts") -> L'entrperise couvre ses emprunts à long terme par ses capitaux propres. La situation est rassurante dans la mesure où la banque espère un ratio supérieur à 1. Il sera donc rassuré sur la capacité de l'entreprise à rembourser ses emprunts
A121: Ratios de rotation
A122: =IF(C106<E106,"Le délai de rotation des stocks est inférieur à la moyenne de la branche. C'est une bonne chose. Cette valeur doit être la plus courte possible pour limiter de mobiliser trop de trésorerie de manière inutile","Le délai de rotation des stocks est supérieur à la moyenne de la branche. Ce n'est pas satisfaisant. L'entreprise mobilise trop de trésorerie de manière inutile. Elle doit améliorer sa politique de gestion des stocks afin de réduire le délai.") -> Le délai de rotation des stocks est inférieur à la moyenne de la branche. C'est une bonne chose. Cette valeur doit être la plus courte possible pour limiter de mobiliser trop de trésorerie de manière inutile
A123: =IF(C107>C108,"Le délai de rotation client est supérieur à celui des fournisseurs. C'est une bonne chose car les clients paient avant que l'entreprise ne paie ses propres fournisseurs","Le délai de rotation client est inférieur à celui des fournisseurs. Cela signifie que l'entreprise décaisse avant d'avoir encaissé les paiements clients. Elle devrait négocier ou raccourcir les délais accordés aux clients.") -> Le délai de rotation client est supérieur à celui des fournisseurs. C'est une bonne chose car les clients paient avant que l'entreprise ne paie ses propres fournisseurs
A124: Comparaison des ratios de rotation à la branche
A125: =IF(C106>E106,"Le délai de rotation des stocks est supérieur à celui de la branche. L'entreprise doit revoir sa politique de gestion des stocks car elle n'écoule pas aussi vite que la moyenne.","Le délai de rotation des stocks est inférieur à celui de la branche. L'entreprise écoule plus vite que la moyenne. Elle doit tout de même veiller à ce que ce ratio soit le plus court possible.") -> Le délai de rotation des stocks est inférieur à celui de la branche. L'entreprise écoule plus vite que la moyenne. Elle doit tout de même veiller à ce que ce ratio soit le plus court possible.
A126: =IF(C107>E107,"Le délai de rotation des clients est supérieur à celui de la branche. L'entreprise doit revoir sa politique d'encaissement car donne trop de délai pour que ses clients ne la paient. Elle doit veiller à raccourcir les délais accordés.","Le délai de rotation des clients est inférieur à celui de la branche. L'entreprise encaisse plus vite que la moyenne. Elle doit tout de même veiller à ce que ce ratio soit le plus court possible.") -> Le délai de rotation des clients est inférieur à celui de la branche. L'entreprise encaisse plus vite que la moyenne. Elle doit tout de même veiller à ce que ce ratio soit le plus court possible.
A127: =IF(C108>E108,"Le délai de rotation des fournisseurs est supérieur à celui de la branche. Elle règle donc ses fournisseurs plus tard que la moyenne (meilleure politique commerciale). Elle doit tout de même veiller à allonger les délais si possible.","Le délai de rotation des fournisseurs est inférieur à celui de la branche. L'entreprise paie ses fournisseurs plus vite que la moyenne. Elle doit veiller à allonger ses délais en renégociant avec ses fournissuers.") -> Le délai de rotation des fournisseurs est inférieur à celui de la branche. L'entreprise paie ses fournisseurs plus vite que la moyenne. Elle doit veiller à allonger ses délais en renégociant avec ses fournissuers.

Sheet DONNEES
B1: mini | C1: maxi
A2: Immobilisations incorporelles | B2: 15000 | C2: 25000 | D2: X
A3: Immobilisation corporelles | B3: 100000 | C3: 500000 | D3: X
A4: Immobilisations financières | B4: 5000 | C4: 25000 | D4: X
A5: Stocks | B5: 10000 | C5: 30000 | D5: X
A6: Créances clients | B6: 50000 | C6: 150000 | D6: X
A7: Créances fiscales | B7: 5000 | C7: 15000 | D7: X
A8: Valeurs Mobilières de placement | B8: 0 | C8: 25000 | D8: X
A9: Disponibilités
A11: Capital | B11: 100000 | C11: 250000 | D11: X
A12: Réserves | B12: 5000 | C12: 15000 | D12: X
A13: Résultat | B13: 55000 | C13: 150000 | D13: X
A14: Emprunts | B14: =SUM(B2:B4)*0.8 -> 96000 | C14: =SUM(C2:C4)*0.8 -> 440000 | D14: X
A15: Dettes fournisseurs | B15: 50000 | C15: 250000 | D15: X
A16: Dettes fiscales et sociales | B16: 5000 | C16: 15000
A17: découvert | B17: 0 | C17: 2500
A18: RTS | B18: 5 | C18: 35
A19: RTC | B19: 15 | C19: 60
A20: RTF | B20: 15 | C20: 60
A21: ACOMPTES | B21: 2500 | C21: 5000
